[Event "*** Titled Tuesday 3|2 Blitz"]
[Site "Chess.com"]
[Date "2015.08.04"]
[Round "1"]
[White "WarlordX"]
[Black "Yaacovn"]
[Result "0-1"]
[WhiteElo "2194"]
[BlackElo "2551"]
[TimeControl "180+2"]
[EndTime "11:31:42 PDT"]
[Termination "Yaacovn won by checkmate"]

1. d4 {[%clk 0:03:01.9]} 1... Nf6 {[%clk 0:03:00.9]} 2. c4 {[%clk 0:03:03]} 2...
e5 {[%clk 0:02:59.9]} 3. dxe5 {[%clk 0:03:00.7]} 3... Ne4 {[%clk 0:03:01.4]} 4.
a3 {[%clk 0:02:55.1]} 4... d6 {[%clk 0:03:02.5]} 5. Qd3 {[%clk 0:02:52.2]} 5...
Nc5 {[%clk 0:03:00.3]} 6. Qc3 {[%clk 0:02:43.4]} 6... dxe5 {[%clk 0:02:55.8]} 7.
Qxe5+ {[%clk 0:02:42.7]} 7... Be6 {[%clk 0:02:57]} 8. Nc3 {[%clk 0:02:32]} 8...
Nc6 {[%clk 0:02:57]} 9. Qe3 {[%clk 0:02:26.6]} 9... Nd4 {[%clk 0:02:56.4]} 10.
Qg5 {[%clk 0:02:16.5]} 10... Nc2# {[%clk 0:02:56.9]} 0-1

[Event "*** Titled Tuesday 3|2 Blitz"]
[Site "Chess.com"]
[Date "2015.08.04"]
[Round "1"]
[White "Aygehovit1992"]
[Black "ChessMavenYeti"]
[Result "1/2-1/2"]
[WhiteElo "2408"]
[BlackElo "2040"]
[TimeControl "180+2"]
[EndTime "11:33:26 PDT"]
[Termination "Game drawn by repetition"]

1. Nf3 {[%clk 0:03:00.3]} 1... e6 {[%clk 0:02:56.2]} 2. g3 {[%clk 0:02:57.5]}
2... d5 {[%clk 0:02:56.9]} 3. Bg2 {[%clk 0:02:58.7]} 3... f5 {[%clk 0:02:57.7]}
4. O-O {[%clk 0:03:00.1]} 4... Nf6 {[%clk 0:02:59.6]} 5. c4 {[%clk 0:03:00.9]}
5... c6 {[%clk 0:02:59.7]} 6. b3 {[%clk 0:03:02.2]} 6... Bd6 {[%clk 0:03:01.2]}
7. Ba3 {[%clk 0:03:03]} 7... O-O {[%clk 0:03:01.8]} 8. Bxd6 {[%clk 0:03:02.6]}
8... Qxd6 {[%clk 0:03:03.7]} 9. d4 {[%clk 0:03:03.6]} 9... Nbd7 {[%clk
0:03:03.8]} 10. Nbd2 {[%clk 0:02:57.7]} 10... Ne4 {[%clk 0:03:04.5]} 11. Rc1
{[%clk 0:02:55]} 11... b6 {[%clk 0:03:04.4]} 12. e3 {[%clk 0:02:45.4]} 12... Bb7
{[%clk 0:03:04.7]} 13. Ne1 {[%clk 0:02:45.7]} 13... e5 {[%clk 0:03:00.2]} 14.
cxd5 {[%clk 0:02:42.8]} 14... cxd5 {[%clk 0:02:59.6]} 15. dxe5 {[%clk
0:02:43.2]} 15... Nxe5 {[%clk 0:02:58.1]} 16. Ndf3 {[%clk 0:02:44.2]} 16... Ng4
{[%clk 0:02:52.7]} 17. h3 {[%clk 0:02:37.6]} 17... Ngxf2 {[%clk 0:02:44.2]} 18.
Rxf2 {[%clk 0:02:38.3]} 18... Qxg3 {[%clk 0:02:44.9]} 19. Rfc2 {[%clk 0:02:36]}
19... Rac8 {[%clk 0:02:38]} 20. Rxc8 {[%clk 0:02:35.4]} 20... Qf2+ {[%clk
0:02:38.5]} 21. Kh2 {[%clk 0:02:25.5]} 21... Qg3+ {[%clk 0:02:38.5]} 22. Kg1
{[%clk 0:02:15.7]} 22... Qf2+ {[%clk 0:02:39.5]} 23. Kh1 {[%clk 0:02:13.2]}
23... Ng3+ {[%clk 0:02:40.3]} 24. Kh2 {[%clk 0:02:14.4]} 24... Nf1+ {[%clk
0:02:38.3]} 25. Kh1 {[%clk 0:02:15.6]} 25... Ng3+ {[%clk 0:02:26.2]} 26. Kh2
{[%clk 0:02:16.7]} 26... Nf1+ {[%clk 0:02:27.2]} 27. Kh1 {[%clk 0:02:18]} 27...
Ng3+ {[%clk 0:02:26.4]} 1/2-1/2

[Event "*** Titled Tuesday 3|2 Blitz"]
[Site "Chess.com"]
[Date "2015.08.04"]
[Round "1"]
[White "fpawn"]
[Black "Janosik"]
[Result "0-1"]
[WhiteElo "2096"]
[BlackElo "2495"]
[TimeControl "180+2"]
[EndTime "11:34:07 PDT"]
[Termination "Janosik won by resignation"]

1. e4 {[%clk 0:02:59.4]} 1... e5 {[%clk 0:03:00.3]} 2. Nf3 {[%clk 0:02:58.8]}
2... Nc6 {[%clk 0:03:01.3]} 3. d4 {[%clk 0:02:59.7]} 3... exd4 {[%clk
0:03:03.2]} 4. Nxd4 {[%clk 0:03:01.1]} 4... Qf6 {[%clk 0:03:03.4]} 5. Be3 {[%clk
0:03:00.7]} 5... Bc5 {[%clk 0:03:03]} 6. c3 {[%clk 0:03:01]} 6... Nge7 {[%clk
0:03:04]} 7. Bc4 {[%clk 0:03:01.5]} 7... O-O {[%clk 0:03:05]} 8. O-O {[%clk
0:03:01.6]} 8... b6 {[%clk 0:03:06.5]} 9. Nc2 {[%clk 0:02:41.3]} 9... Ne5 {[%clk
0:02:42.1]} 10. Be2 {[%clk 0:02:40.8]} 10... N5g6 {[%clk 0:02:40.2]} 11. Nd2
{[%clk 0:02:34]} 11... Bb7 {[%clk 0:02:38.2]} 12. f3 {[%clk 0:02:27.8]} 12...
Nf4 {[%clk 0:02:38.4]} 13. Rf2 {[%clk 0:02:20]} 13... Rfe8 {[%clk 0:02:31.2]}
14. Bxc5 {[%clk 0:02:19.1]} 14... bxc5 {[%clk 0:02:33.1]} 15. Nc4 {[%clk
0:02:12.6]} 15... d6 {[%clk 0:02:30.4]} 16. N4e3 {[%clk 0:02:12.3]} 16... Neg6
{[%clk 0:02:29.4]} 17. Bc4 {[%clk 0:02:04.9]} 17... Re5 {[%clk 0:02:26.5]} 18.
Ng4 {[%clk 0:02:01.7]} 18... Qg5 {[%clk 0:02:27.4]} 19. Nxe5 {[%clk 0:01:55.2]}
19... Nxe5 {[%clk 0:02:29.3]} 20. Bd5 {[%clk 0:01:48.9]} 20... Bxd5 {[%clk
0:02:29.4]} 21. exd5 {[%clk 0:01:48.7]} 21... Nh3+ {[%clk 0:02:30.6]} 22. Kf1
{[%clk 0:01:49.9]} 22... Nxf2 {[%clk 0:02:32.2]} 23. Kxf2 {[%clk 0:01:51.4]}
23... Re8 {[%clk 0:02:28.2]} 24. Ne1 {[%clk 0:01:50.2]} 24... Nc4 {[%clk
0:02:24.7]} 25. b3 {[%clk 0:01:36.5]} 25... Qe3+ {[%clk 0:02:24.2]} 26. Kf1
{[%clk 0:01:37.8]} 26... Nd2+ {[%clk 0:02:25]} 0-1

[Event "*** Titled Tuesday 3|2 Blitz"]
[Site "Chess.com"]
[Date "2015.08.04"]
[Round "1"]
[White "1stSecond"]
[Black "NowInChess"]
[Result "1-0"]
[WhiteElo "2348"]
[BlackElo "1961"]
[TimeControl "180+2"]
[EndTime "11:34:56 PDT"]
[Termination "1stSecond won by resignation"]

1. d4 {[%clk 0:02:49.4]} 1... Nf6 {[%clk 0:02:59.8]} 2. c4 {[%clk 0:02:50.4]}
2... c5 {[%clk 0:03:00.3]} 3. d5 {[%clk 0:02:51.3]} 3... e5 {[%clk 0:03:01.1]}
4. Nc3 {[%clk 0:02:51.9]} 4... d6 {[%clk 0:03:01.9]} 5. h3 {[%clk 0:02:52.6]}
5... g6 {[%clk 0:03:00.6]} 6. Nf3 {[%clk 0:02:53.6]} 6... Bg7 {[%clk 0:03:01.3]}
7. g4 {[%clk 0:02:51.1]} 7... O-O {[%clk 0:02:59.4]} 8. Bg2 {[%clk 0:02:51.9]}
8... Na6 {[%clk 0:02:59.5]} 9. Bg5 {[%clk 0:02:48.7]} 9... Bd7 {[%clk
0:02:48.9]} 10. Nd2 {[%clk 0:02:47]} 10... Nc7 {[%clk 0:02:40.8]} 11. Nde4
{[%clk 0:02:47.4]} 11... Nce8 {[%clk 0:02:22.1]} 12. Qd2 {[%clk 0:02:42.9]}
12... a6 {[%clk 0:02:21.4]} 13. a4 {[%clk 0:02:43.2]} 13... b5 {[%clk
0:01:52.1]} 14. axb5 {[%clk 0:02:36.5]} 14... axb5 {[%clk 0:01:52.7]} 15. O-O
{[%clk 0:02:30.5]} 15... Rxa1 {[%clk 0:01:42.8]} 16. Rxa1 {[%clk 0:02:30.7]}
16... b4 {[%clk 0:01:42.7]} 17. Nxf6+ {[%clk 0:02:24.1]} 17... Bxf6 {[%clk
0:01:41.8]} 18. Ne4 {[%clk 0:02:16.7]} 18... Bxg5 {[%clk 0:01:38.7]} 19. Nxg5
{[%clk 0:02:18.6]} 19... Qb8 {[%clk 0:01:24.4]} 20. b3 {[%clk 0:02:08.2]} 20...
Nc7 {[%clk 0:01:18.9]} 21. Ne4 {[%clk 0:02:05.7]} 21... Qb6 {[%clk 0:01:03.2]}
22. Nf6+ {[%clk 0:02:04.9]} 1-0

[Event "*** Titled Tuesday 3|2 Blitz"]
[Site "Chess.com"]
[Date "2015.08.04"]
[Round "1"]
[White "Bab3s"]
[Black "Tesla37"]
[Result "0-1"]
[WhiteElo "2121"]
[BlackElo "2513"]
[TimeControl "180+2"]
[EndTime "11:35:14 PDT"]
[Termination "Tesla37 won by resignation"]

1. e4 {[%clk 0:03:01.9]} 1... c5 {[%clk 0:03:00.1]} 2. c3 {[%clk 0:03:03]} 2...
Qa5 {[%clk 0:02:59.9]} 3. Nf3 {[%clk 0:03:03.3]} 3... Nc6 {[%clk 0:03:00.3]} 4.
Be2 {[%clk 0:03:04.4]} 4... Nf6 {[%clk 0:02:58.5]} 5. d3 {[%clk 0:02:59.1]} 5...
d5 {[%clk 0:02:57.2]} 6. exd5 {[%clk 0:02:57]} 6... Nxd5 {[%clk 0:02:57.9]} 7.
O-O {[%clk 0:02:58.6]} 7... g6 {[%clk 0:02:54.5]} 8. Na3 {[%clk 0:02:45.2]} 8...
Bg7 {[%clk 0:02:54.9]} 9. c4 {[%clk 0:02:20.7]} 9... Nf6 {[%clk 0:02:43.8]} 10.
Bf4 {[%clk 0:02:18.9]} 10... a6 {[%clk 0:02:38.6]} 11. Ne5 {[%clk 0:02:10.2]}
11... Nd4 {[%clk 0:02:28.9]} 12. Bf3 {[%clk 0:01:39.8]} 12... O-O {[%clk
0:02:25]} 13. Nc2 {[%clk 0:01:39.8]} 13... Nxf3+ {[%clk 0:02:21.5]} 14. Qxf3
{[%clk 0:01:41.7]} 14... Qb6 {[%clk 0:02:20.6]} 15. b3 {[%clk 0:01:37.2]} 15...
Be6 {[%clk 0:02:19.3]} 16. Rad1 {[%clk 0:01:37.2]} 16... Rad8 {[%clk 0:02:19]}
17. h3 {[%clk 0:01:33.2]} 17... Rfe8 {[%clk 0:02:08.6]} 18. Rfe1 {[%clk
0:01:31]} 18... Bc8 {[%clk 0:01:56]} 19. d4 {[%clk 0:00:57]} 19... cxd4 {[%clk
0:01:55.6]} 20. Nxd4 {[%clk 0:00:58.3]} 20... Rxd4 {[%clk 0:01:46.9]} 21. Be3
{[%clk 0:00:59.3]} 21... Rxd1 {[%clk 0:01:47.4]} 22. Bxb6 {[%clk 0:00:59.5]}
22... Rxe1+ {[%clk 0:01:47.9]} 23. Kh2 {[%clk 0:01:01.1]} 23... Rxe5 {[%clk
0:01:48.9]} 0-1

[Event "*** Titled Tuesday 3|2 Blitz"]
[Site "Chess.com"]
[Date "2015.08.04"]
[Round "1"]
[White "Hafez_Bakr"]
[Black "stepanosinovsky"]
[Result "0-1"]
[WhiteElo "1788"]
[BlackElo "2278"]
[TimeControl "180+2"]
[EndTime "11:35:21 PDT"]
[Termination "stepanosinovsky won by resignation"]

1. e4 {[%clk 0:02:41.1]} 1... b6 {[%clk 0:02:57.7]} 2. Nf3 {[%clk 0:02:38.3]}
2... Bb7 {[%clk 0:02:59.6]} 3. Nc3 {[%clk 0:02:39.4]} 3... e6 {[%clk 0:03:00.2]}
4. d4 {[%clk 0:02:40.8]} 4... Bb4 {[%clk 0:03:00.7]} 5. Bd3 {[%clk 0:02:40]}
5... d5 {[%clk 0:02:59.5]} 6. exd5 {[%clk 0:02:37.1]} 6... Qxd5 {[%clk
0:02:58.1]} 7. O-O {[%clk 0:02:37.7]} 7... Bxc3 {[%clk 0:02:59]} 8. bxc3 {[%clk
0:02:38.2]} 8... Ne7 {[%clk 0:02:58.3]} 9. a4 {[%clk 0:02:39]} 9... Nbc6 {[%clk
0:02:58.6]} 10. Re1 {[%clk 0:02:37.8]} 10... h6 {[%clk 0:01:58.2]} 11. Ba3
{[%clk 0:02:34.2]} 11... O-O {[%clk 0:01:22]} 12. Bxe7 {[%clk 0:02:32.5]} 12...
Nxe7 {[%clk 0:01:22.4]} 13. Be4 {[%clk 0:02:33.5]} 13... Qxe4 {[%clk 0:01:22.8]}
14. Rxe4 {[%clk 0:02:34.4]} 14... Bxe4 {[%clk 0:01:24.7]} 15. Qe2 {[%clk
0:02:35.4]} 15... Bb7 {[%clk 0:01:06.7]} 16. a5 {[%clk 0:02:30.3]} 16... Rfd8
{[%clk 0:01:05.4]} 17. axb6 {[%clk 0:02:30.7]} 17... axb6 {[%clk 0:01:06.3]} 18.
Rxa8 {[%clk 0:02:30.5]} 18... Rxa8 {[%clk 0:01:07.6]} 19. Qc4 {[%clk 0:02:31.3]}
19... Ra1+ {[%clk 0:01:06.5]} 20. Qf1 {[%clk 0:02:28.5]} 20... Rxf1+ {[%clk
0:01:07.3]} 21. Kxf1 {[%clk 0:02:29.4]} 21... Bxf3 {[%clk 0:01:08.9]} 22. gxf3
{[%clk 0:02:30]} 22... Nd5 {[%clk 0:01:09.3]} 23. c4 {[%clk 0:02:28.5]} 23...
Nb4 {[%clk 0:01:10.8]} 24. c3 {[%clk 0:02:24.1]} 24... Na2 {[%clk 0:01:11.7]}
25. Ke2 {[%clk 0:02:24.2]} 25... Nxc3+ {[%clk 0:01:12.8]} 26. Kd3 {[%clk
0:02:24.8]} 26... Na4 {[%clk 0:01:13.7]} 27. Kc2 {[%clk 0:02:24.1]} 27... e5
{[%clk 0:01:00.8]} 28. Kb3 {[%clk 0:02:22.2]} 28... exd4 {[%clk 0:01:01.3]} 29.
Kxa4 {[%clk 0:02:23.1]} 29... Kf8 {[%clk 0:01:00.7]} 30. Kb4 {[%clk 0:02:23.6]}
30... Ke7 {[%clk 0:00:59.7]} 31. Kb3 {[%clk 0:02:23.4]} 31... Kd6 {[%clk
0:01:00.1]} 32. Kc2 {[%clk 0:02:25.3]} 32... Ke5 {[%clk 0:01:01.4]} 33. Kd3
{[%clk 0:02:27.1]} 33... c5 {[%clk 0:01:02.5]} 0-1

[Event "*** Titled Tuesday 3|2 Blitz"]
[Site "Chess.com"]
[Date "2015.08.04"]
[Round "1"]
[White "fancyknightmaneuvers"]
[Black "MinhGTrAn"]
[Result "0-1"]
[WhiteElo "2160"]
[BlackElo "2515"]
[TimeControl "180+2"]
[EndTime "11:35:38 PDT"]
[Termination "MinhGTrAn won by resignation"]

1. e4 {[%clk 0:03:01.9]} 1... c5 {[%clk 0:03:00.8]} 2. Nf3 {[%clk 0:02:56.1]}
2... d6 {[%clk 0:03:02.3]} 3. d4 {[%clk 0:02:56.4]} 3... cxd4 {[%clk 0:03:04.2]}
4. Qxd4 {[%clk 0:02:57.4]} 4... Nc6 {[%clk 0:03:03.6]} 5. Bb5 {[%clk 0:02:57.7]}
5... Bd7 {[%clk 0:03:05.2]} 6. Bxc6 {[%clk 0:02:55.5]} 6... Bxc6 {[%clk
0:03:07.1]} 7. Nc3 {[%clk 0:02:50.4]} 7... Nf6 {[%clk 0:03:08.3]} 8. Bg5 {[%clk
0:02:44.3]} 8... e6 {[%clk 0:03:09.8]} 9. O-O-O {[%clk 0:02:38.8]} 9... Be7
{[%clk 0:03:10.9]} 10. Qd3 {[%clk 0:02:39]} 10... Qc7 {[%clk 0:03:07.6]} 11.
Bxf6 {[%clk 0:02:25.8]} 11... Bxf6 {[%clk 0:03:04.9]} 12. Nb5 {[%clk 0:02:24.8]}
12... Bxb5 {[%clk 0:02:59.3]} 13. Qxb5+ {[%clk 0:02:22.4]} 13... Ke7 {[%clk
0:02:59.2]} 14. Kb1 {[%clk 0:02:17]} 14... Rhd8 {[%clk 0:02:59.9]} 15. g4 {[%clk
0:02:13.4]} 15... Rac8 {[%clk 0:03:00.5]} 16. g5 {[%clk 0:02:03.1]} 16... Qxc2+
{[%clk 0:02:32.6]} 17. Ka1 {[%clk 0:02:02.5]} 17... Bc3 {[%clk 0:02:34]} 18.
Qxb7+ {[%clk 0:01:19.8]} 18... Rd7 {[%clk 0:02:22.8]} 19. Qb3 {[%clk 0:01:12.1]}
19... Qxe4 {[%clk 0:02:08.7]} 20. bxc3 {[%clk 0:00:48.2]} 20... Qxf3 {[%clk
0:02:09.6]} 21. Rhf1 {[%clk 0:00:38.2]} 21... Qxc3+ {[%clk 0:02:08.8]} 22. Qxc3
{[%clk 0:00:36.9]} 22... Rxc3 {[%clk 0:02:10.7]} 23. f4 {[%clk 0:00:38.5]} 23...
g6 {[%clk 0:02:10.8]} 24. Rd2 {[%clk 0:00:38.9]} 24... d5 {[%clk 0:02:11]} 25.
Kb2 {[%clk 0:00:40.1]} 25... Rdc7 {[%clk 0:02:11.3]} 26. Re1 {[%clk 0:00:41.3]}
26... Kd6 {[%clk 0:02:10.8]} 27. Ree2 {[%clk 0:00:39.2]} 27... R3c4 {[%clk
0:02:11.7]} 28. Rf2 {[%clk 0:00:34.4]} 28... Rb7+ {[%clk 0:02:13.2]} 29. Ka3
{[%clk 0:00:32.8]} 0-1

[Event "*** Titled Tuesday 3|2 Blitz"]
[Site "Chess.com"]
[Date "2015.08.04"]
[Round "1"]
[White "tac49"]
[Black "armago"]
[Result "1-0"]
[WhiteElo "2452"]
[BlackElo "2053"]
[TimeControl "180+2"]
[EndTime "11:35:38 PDT"]
[Termination "tac49 won by resignation"]

1. e4 {[%clk 0:02:55.2]} 1... c5 {[%clk 0:02:59.8]} 2. Nf3 {[%clk 0:02:55.7]}
2... Nc6 {[%clk 0:03:00.6]} 3. d4 {[%clk 0:02:55.5]} 3... cxd4 {[%clk
0:03:01.3]} 4. Nxd4 {[%clk 0:02:57]} 4... Nf6 {[%clk 0:03:02.8]} 5. Nc3 {[%clk
0:02:57.1]} 5... e5 {[%clk 0:03:04.3]} 6. Ndb5 {[%clk 0:02:58.2]} 6... d6 {[%clk
0:03:04.9]} 7. Bg5 {[%clk 0:02:57.6]} 7... a6 {[%clk 0:03:05.7]} 8. Na3 {[%clk
0:02:59]} 8... b5 {[%clk 0:03:06.9]} 9. Bxf6 {[%clk 0:03:00.3]} 9... gxf6 {[%clk
0:03:07.1]} 10. Nd5 {[%clk 0:03:02.2]} 10... Bg7 {[%clk 0:03:05.2]} 11. Bd3
{[%clk 0:03:03.2]} 11... f5 {[%clk 0:03:05.1]} 12. exf5 {[%clk 0:02:51.2]} 12...
e4 {[%clk 0:02:54.1]} 13. Bxe4 {[%clk 0:02:48.2]} 13... Bxb2 {[%clk 0:02:54.5]}
14. O-O {[%clk 0:02:14.6]} 14... O-O {[%clk 0:02:40.8]} 15. f6 {[%clk 0:02:04]}
15... Re8 {[%clk 0:01:59.5]} 16. Qh5 {[%clk 0:01:57.1]} 16... Rxe4 {[%clk
0:01:56.5]} 17. Qg5+ {[%clk 0:01:57.1]} 17... Kf8 {[%clk 0:01:57.2]} 18. Qg7+
{[%clk 0:01:54.5]} 18... Ke8 {[%clk 0:01:58.8]} 19. Qg8+ {[%clk 0:01:47.5]}
19... Kd7 {[%clk 0:01:59.8]} 20. Qxf7+ {[%clk 0:01:49.4]} 20... Ne7 {[%clk
0:02:00]} 21. Rae1 {[%clk 0:01:21.8]} 21... Rxe1 {[%clk 0:01:27.4]} 22. Rxe1
{[%clk 0:01:23.7]} 22... Kc6 {[%clk 0:01:27.8]} 23. fxe7 {[%clk 0:01:19]} 23...
Qd7 {[%clk 0:01:16.7]} 24. e8=Q {[%clk 0:01:16.4]} 1-0

[Event "*** Titled Tuesday 3|2 Blitz"]
[Site "Chess.com"]
[Date "2015.08.04"]
[Round "1"]
[White "Mugzyyy"]
[Black "Mr_Penings"]
[Result "1-0"]
[WhiteElo "2590"]
[BlackElo "2214"]
[TimeControl "180+2"]
[EndTime "11:35:48 PDT"]
[Termination "Mugzyyy won by resignation"]

1. d4 {[%clk 0:03:00.8]} 1... Nf6 {[%clk 0:03:00.9]} 2. c4 {[%clk 0:03:01.5]}
2... e6 {[%clk 0:03:01.7]} 3. Nc3 {[%clk 0:03:01.9]} 3... Bb4 {[%clk 0:03:02.6]}
4. Nf3 {[%clk 0:03:03.3]} 4... c5 {[%clk 0:03:03.1]} 5. g3 {[%clk 0:03:04]} 5...
cxd4 {[%clk 0:03:04.3]} 6. Nxd4 {[%clk 0:03:05.3]} 6... Nc6 {[%clk 0:03:04.9]}
7. Bg2 {[%clk 0:03:06.3]} 7... O-O {[%clk 0:03:05.9]} 8. O-O {[%clk 0:03:07.4]}
8... a6 {[%clk 0:03:02.5]} 9. Bf4 {[%clk 0:03:01.6]} 9... Re8 {[%clk 0:02:53.6]}
10. Nb3 {[%clk 0:02:56.7]} 10... h6 {[%clk 0:02:34.1]} 11. c5 {[%clk 0:02:52.8]}
11... Bxc3 {[%clk 0:02:31.1]} 12. bxc3 {[%clk 0:02:53.6]} 12... e5 {[%clk
0:02:32.6]} 13. Be3 {[%clk 0:02:52.2]} 13... a5 {[%clk 0:02:31.1]} 14. a4 {[%clk
0:02:51.8]} 14... Qe7 {[%clk 0:02:25.9]} 15. h3 {[%clk 0:02:49.6]} 15... e4
{[%clk 0:02:14.4]} 16. Rb1 {[%clk 0:02:25.4]} 16... Ne5 {[%clk 0:02:07.9]} 17.
Qd4 {[%clk 0:02:20.2]} 17... Nc6 {[%clk 0:02:04.6]} 18. Qd6 {[%clk 0:02:20.4]}
18... Ra6 {[%clk 0:02:03.5]} 19. Rfd1 {[%clk 0:02:07.7]} 19... Ne5 {[%clk
0:01:54]} 20. Qxe7 {[%clk 0:02:02.8]} 20... Rxe7 {[%clk 0:01:55.9]} 21. Nd2
{[%clk 0:02:04.1]} 21... Ng6 {[%clk 0:01:48.7]} 22. Nc4 {[%clk 0:02:04.2]} 22...
Rc6 {[%clk 0:01:34.4]} 23. Nd6 {[%clk 0:02:00.9]} 23... Ne5 {[%clk 0:01:29.7]}
24. Rb6 {[%clk 0:02:00.8]} 24... Rc7 {[%clk 0:01:23.3]} 25. Bd4 {[%clk
0:01:47.1]} 25... Nd5 {[%clk 0:01:20.7]} 26. Bxe4 {[%clk 0:01:37.9]} 26... Nxb6
{[%clk 0:00:59.9]} 27. cxb6 {[%clk 0:01:39.8]} 27... Rc4 {[%clk 0:01:01]} 28.
Bxe5 {[%clk 0:01:25.5]} 1-0

[Event "*** Titled Tuesday 3|2 Blitz"]
[Site "Chess.com"]
[Date "2015.08.04"]
[Round "1"]
[White "Konavets"]
[Black "Tacticus_Severus"]
[Result "1-0"]
[WhiteElo "2468"]
[BlackElo "2078"]
[TimeControl "180+2"]
[EndTime "11:36:00 PDT"]
[Termination "Konavets won by resignation"]

1. e4 {[%clk 0:03:00.6]} 1... c5 {[%clk 0:02:59.9]} 2. Nf3 {[%clk 0:03:01.8]}
2... e6 {[%clk 0:03:00.8]} 3. d4 {[%clk 0:03:03]} 3... cxd4 {[%clk 0:03:01]} 4.
Bg5 {[%clk 0:03:03.6]} 4... Qb6 {[%clk 0:02:56.3]} 5. Qxd4 {[%clk 0:03:03.5]}
5... Bb4+ {[%clk 0:02:43.8]} 6. Nc3 {[%clk 0:02:57.3]} 6... Qxd4 {[%clk
0:02:43.1]} 7. Nxd4 {[%clk 0:02:59.2]} 7... Nf6 {[%clk 0:02:26.4]} 8. Bd3 {[%clk
0:02:57.9]} 8... Nc6 {[%clk 0:02:21.4]} 9. Nb5 {[%clk 0:02:57.3]} 9... Ke7
{[%clk 0:02:07.2]} 10. a3 {[%clk 0:02:55.6]} 10... Bxc3+ {[%clk 0:02:05.8]} 11.
Nxc3 {[%clk 0:02:57.5]} 11... d6 {[%clk 0:02:07.1]} 12. O-O-O {[%clk 0:02:58.3]}
12... a6 {[%clk 0:02:01.5]} 13. f4 {[%clk 0:02:58.6]} 13... h6 {[%clk
0:01:58.6]} 14. Bh4 {[%clk 0:02:59.3]} 14... Rg8 {[%clk 0:01:46]} 15. Bf2 {[%clk
0:02:37.8]} 15... g5 {[%clk 0:01:44.2]} 16. g3 {[%clk 0:02:37.8]} 16... Ng4
{[%clk 0:01:13.4]} 17. Bb6 {[%clk 0:02:37.3]} 17... Nf6 {[%clk 0:01:03]} 18.
Rhe1 {[%clk 0:02:23.5]} 18... Nd7 {[%clk 0:01:02.8]} 19. Bf2 {[%clk 0:02:22.6]}
19... b5 {[%clk 0:01:01.2]} 20. Nd5+ {[%clk 0:02:22.5]} 20... Kd8 {[%clk
0:00:52.9]} 21. Nb4 {[%clk 0:02:10.1]} 21... Nxb4 {[%clk 0:00:38.2]} 22. axb4
{[%clk 0:02:12]} 22... Kc7 {[%clk 0:00:27.8]} 23. Bf1 {[%clk 0:02:07.3]} 23...
Bb7 {[%clk 0:00:25]} 24. Re3 {[%clk 0:02:08.4]} 24... Nb6 {[%clk 0:00:18.6]} 25.
Rc3+ {[%clk 0:02:07.7]} 25... Nc4 {[%clk 0:00:13.7]} 26. b3 {[%clk 0:02:05.9]}
1-0

[Event "*** Titled Tuesday 3|2 Blitz"]
[Site "Chess.com"]
[Date "2015.08.04"]
[Round "1"]
[White "myaccount88"]
[Black "DanielNaroditsky"]
[Result "0-1"]
[WhiteElo "2181"]
[BlackElo "2546"]
[TimeControl "180+2"]
[EndTime "11:36:06 PDT"]
[Termination "DanielNaroditsky won by resignation"]

1. e4 {[%clk 0:02:58.5]} 1... e5 {[%clk 0:03:01]} 2. Nf3 {[%clk 0:02:57.4]} 2...
Nc6 {[%clk 0:03:02.4]} 3. Bc4 {[%clk 0:02:58.8]} 3... Bc5 {[%clk 0:03:02.9]} 4.
d3 {[%clk 0:02:59.3]} 4... Nf6 {[%clk 0:03:03.4]} 5. Bg5 {[%clk 0:02:58.2]} 5...
h6 {[%clk 0:03:00.1]} 6. Bh4 {[%clk 0:02:58.6]} 6... g5 {[%clk 0:03:00.9]} 7.
Bg3 {[%clk 0:02:59.6]} 7... d6 {[%clk 0:03:02]} 8. Nbd2 {[%clk 0:02:57.9]} 8...
Bg4 {[%clk 0:02:46.3]} 9. h3 {[%clk 0:02:54.9]} 9... Bh5 {[%clk 0:02:47.4]} 10.
c3 {[%clk 0:02:51.9]} 10... a6 {[%clk 0:02:38]} 11. Qe2 {[%clk 0:02:43.2]} 11...
b5 {[%clk 0:02:38.1]} 12. Bd5 {[%clk 0:02:34.3]} 12... Nxd5 {[%clk 0:02:38]} 13.
exd5 {[%clk 0:02:35.3]} 13... Ne7 {[%clk 0:02:39.7]} 14. c4 {[%clk 0:02:10.9]}
14... f5 {[%clk 0:02:31.6]} 15. O-O-O {[%clk 0:01:56.6]} 15... bxc4 {[%clk
0:02:30.6]} 16. dxc4 {[%clk 0:01:56.9]} 16... e4 {[%clk 0:02:30]} 17. Rhe1
{[%clk 0:01:44.2]} 17... O-O {[%clk 0:02:17.1]} 18. Nxe4 {[%clk 0:01:42.6]}
18... fxe4 {[%clk 0:02:18.1]} 19. Qxe4 {[%clk 0:01:42.9]} 19... Nf5 {[%clk
0:02:19.6]} 20. Qe6+ {[%clk 0:01:20.2]} 20... Rf7 {[%clk 0:02:20.8]} 21. Bh2
{[%clk 0:01:08.8]} 21... Bxf3 {[%clk 0:02:14.1]} 22. gxf3 {[%clk 0:01:09.3]}
22... Qf6 {[%clk 0:02:14.8]} 23. f4 {[%clk 0:01:06]} 23... Rb8 {[%clk
0:02:02.4]} 24. Qxf6 {[%clk 0:00:50.9]} 24... Rxf6 {[%clk 0:02:03.1]} 25. fxg5
{[%clk 0:00:52.3]} 25... hxg5 {[%clk 0:02:03.7]} 26. Rg1 {[%clk 0:00:51.8]}
26... Rg6 {[%clk 0:02:01.6]} 27. Bf4 {[%clk 0:00:45.3]} 27... Nd4 {[%clk
0:01:55.5]} 0-1